[Event "GrandPrix_30.05"]
[Site "Chess.com"]
[Date "2020.05.30"]
[Round "1"]
[White "DrVelja"]
[Black "Bosiocic"]
[Result "1-0"]
[WhiteElo "2253"]
[BlackElo "2689"]
[TimeControl "600+2"]
[EndTime "8:17:47 PDT"]
[Termination "DrVelja won by resignation"]

1. e4 {[%clk 0:09:59.6]} 1... d6 {[%clk 0:10:01.3]} 2. d4 {[%clk 0:10:00.3]}
2... Nf6 {[%clk 0:10:02.9]} 3. Nc3 {[%clk 0:10:00.2]} 3... e5 {[%clk 0:10:04]}
4. Nf3 {[%clk 0:09:52.4]} 4... Nbd7 {[%clk 0:10:04.9]} 5. g4 {[%clk 0:09:53.1]}
5... Nxg4 {[%clk 0:10:03.8]} 6. Rg1 {[%clk 0:09:54.4]} 6... Ngf6 {[%clk
0:10:04.5]} 7. Be3 {[%clk 0:09:55.7]} 7... c6 {[%clk 0:10:04.3]} 8. Qd2 {[%clk
0:09:56.7]} 8... Qa5 {[%clk 0:10:03.8]} 9. O-O-O {[%clk 0:09:56.5]} 9... b5
{[%clk 0:09:51.5]} 10. dxe5 {[%clk 0:09:57.3]} 10... dxe5 {[%clk 0:09:48.1]} 11.
Kb1 {[%clk 0:09:58.4]} 11... b4 {[%clk 0:09:37.1]} 12. Na4 {[%clk 0:09:59.5]}
12... Qxa4 {[%clk 0:08:59.7]} 13. Nxe5 {[%clk 0:09:59.6]} 13... Qa5 {[%clk
0:08:39.4]} 14. Nxc6 {[%clk 0:05:23.1]} 14... Qc7 {[%clk 0:08:38.2]} 15. e5
{[%clk 0:05:23.3]} 15... Ne4 {[%clk 0:07:59.7]} 16. Qd5 {[%clk 0:05:17.4]} 16...
Bb7 {[%clk 0:08:00.1]} 17. Bc4 {[%clk 0:04:46.2]} 17... Bxc6 {[%clk 0:07:20.4]}
18. Qxf7+ {[%clk 0:04:45]} 18... Kd8 {[%clk 0:07:20.8]} 19. e6 {[%clk 0:04:06]}
19... Nd6 {[%clk 0:05:38.6]} 20. Bg5+ {[%clk 0:03:40.7]} 20... Kc8 {[%clk
0:05:39.5]} 21. Ba6+ {[%clk 0:02:54]} 21... Kb8 {[%clk 0:05:37.5]} 22. e7 {[%clk
0:02:55.4]} 22... Bxe7 {[%clk 0:04:29.1]} 23. Qxe7 {[%clk 0:02:55]} 23... Ne4
{[%clk 0:04:14.2]} 24. Rxd7 {[%clk 0:02:24.6]} 1-0

[Event "GrandPrix_30.05"]
[Site "Chess.com"]
[Date "2020.05.30"]
[Round "1"]
[White "econpower"]
[Black "Zubrrr"]
[Result "0-1"]
[WhiteElo "2158"]
[BlackElo "2573"]
[TimeControl "600+2"]
[EndTime "8:17:48 PDT"]
[Termination "Zubrrr won by resignation"]

1. c4 {[%clk 0:10:00.7]} 1... f5 {[%clk 0:10:00.2]} 2. g3 {[%clk 0:10:01.8]}
2... Nf6 {[%clk 0:10:01.2]} 3. Bg2 {[%clk 0:10:03.7]} 3... g6 {[%clk 0:10:02.6]}
4. Nc3 {[%clk 0:10:05.3]} 4... Bg7 {[%clk 0:10:04.1]} 5. e3 {[%clk 0:10:07.2]}
5... e5 {[%clk 0:10:02.3]} 6. Nge2 {[%clk 0:10:09.1]} 6... O-O {[%clk
0:10:00.9]} 7. O-O {[%clk 0:10:10.2]} 7... c6 {[%clk 0:09:50.3]} 8. d3 {[%clk
0:10:08.2]} 8... d6 {[%clk 0:08:20.6]} 9. Rb1 {[%clk 0:09:38.6]} 9... Be6 {[%clk
0:08:20.1]} 10. b4 {[%clk 0:09:39.3]} 10... d5 {[%clk 0:07:22.9]} 11. cxd5
{[%clk 0:09:37.9]} 11... cxd5 {[%clk 0:07:24.8]} 12. f4 {[%clk 0:09:38.4]} 12...
e4 {[%clk 0:07:11.8]} 13. Nd4 {[%clk 0:09:38.4]} 13... Bf7 {[%clk 0:07:12.8]}
14. h3 {[%clk 0:09:30.2]} 14... h5 {[%clk 0:06:16.9]} 15. a4 {[%clk 0:08:47.8]}
15... Re8 {[%clk 0:06:11.1]} 16. Re1 {[%clk 0:08:43.6]} 16... a6 {[%clk
0:05:56.7]} 17. Kh2 {[%clk 0:08:25.1]} 17... Nbd7 {[%clk 0:05:54.9]} 18. Bf1
{[%clk 0:07:43]} 18... Rc8 {[%clk 0:05:38]} 19. Bd2 {[%clk 0:07:43.1]} 19...
exd3 {[%clk 0:04:17.2]} 20. Bxd3 {[%clk 0:07:42.4]} 20... Ne4 {[%clk 0:04:18.3]}
21. Nce2 {[%clk 0:07:43.5]} 21... h4 {[%clk 0:03:56.8]} 22. g4 {[%clk
0:07:36.1]} 22... Nf2 {[%clk 0:03:56.6]} 23. Qb3 {[%clk 0:07:33.3]} 23... fxg4
{[%clk 0:03:56.8]} 24. Rf1 {[%clk 0:07:10.9]} 24... g3+ {[%clk 0:02:54.9]} 25.
Kg2 {[%clk 0:07:11.4]} 25... Nxd3 {[%clk 0:02:38.5]} 26. Qxd3 {[%clk 0:07:11.7]}
26... Nf6 {[%clk 0:02:39.9]} 27. b5 {[%clk 0:06:55.2]} 27... Ne4 {[%clk
0:02:18]} 28. bxa6 {[%clk 0:06:55.3]} 28... bxa6 {[%clk 0:02:19.3]} 29. a5
{[%clk 0:06:40.7]} 29... Qe7 {[%clk 0:02:05.4]} 30. Bb4 {[%clk 0:06:35.2]} 30...
Qd7 {[%clk 0:01:30.1]} 31. Be1 {[%clk 0:06:14.9]} 31... Nc5 {[%clk 0:01:26.4]}
32. Qa3 {[%clk 0:06:10.2]} 32... Qe7 {[%clk 0:01:25.1]} 33. Rf3 {[%clk
0:05:57.7]} 33... Ne6 {[%clk 0:00:39.5]} 34. Bb4 {[%clk 0:04:59.5]} 34... Qd7
{[%clk 0:00:40.3]} 35. Bc3 {[%clk 0:04:52.4]} 35... Nxd4 {[%clk 0:00:28]} 36.
Nxd4 {[%clk 0:04:43.7]} 36... Bxd4 {[%clk 0:00:25.8]} 37. Bxd4 {[%clk
0:04:44.3]} 37... Rc2+ {[%clk 0:00:26.2]} 0-1

[Event "GrandPrix_30.05"]
[Site "Chess.com"]
[Date "2020.05.30"]
[Round "1"]
[White "igorkovalenko"]
[Black "tianachess"]
[Result "1-0"]
[WhiteElo "2342"]
[BlackElo "2011"]
[TimeControl "600+2"]
[EndTime "8:18:04 PDT"]
[Termination "igorkovalenko won by resignation"]

1. d4 {[%clk 0:10:01.9]} 1... Nf6 {[%clk 0:09:59.6]} 2. Nf3 {[%clk 0:10:02.8]}
2... c5 {[%clk 0:10:00]} 3. d5 {[%clk 0:10:02.3]} 3... b5 {[%clk 0:10:00.4]} 4.
Bg5 {[%clk 0:09:54.9]} 4... Qb6 {[%clk 0:10:00.4]} 5. Bxf6 {[%clk 0:09:44.7]}
5... Qxf6 {[%clk 0:10:00.2]} 6. e4 {[%clk 0:09:45.5]} 6... Qb6 {[%clk
0:09:58.4]} 7. a4 {[%clk 0:09:17.6]} 7... bxa4 {[%clk 0:09:33.1]} 8. Nc3 {[%clk
0:09:10.9]} 8... g6 {[%clk 0:09:10.8]} 9. Nxa4 {[%clk 0:09:10.6]} 9... Qb4+
{[%clk 0:09:03]} 10. Nd2 {[%clk 0:09:08.9]} 10... d6 {[%clk 0:08:22]} 11. c3
{[%clk 0:09:00.7]} 11... Qb7 {[%clk 0:07:55.8]} 12. Qb3 {[%clk 0:08:12.2]} 12...
Bh6 {[%clk 0:06:22.1]} 13. Qxb7 {[%clk 0:07:23.1]} 13... Bxb7 {[%clk 0:06:22.1]}
14. Bb5+ {[%clk 0:07:23.5]} 14... Kd8 {[%clk 0:05:13.7]} 15. Nb3 {[%clk
0:07:19.6]} 15... Kc7 {[%clk 0:04:02.9]} 16. Na5 {[%clk 0:07:13.9]} 16... Ba6
{[%clk 0:03:41.7]} 17. Bxa6 {[%clk 0:07:14.7]} 17... Nxa6 {[%clk 0:03:42]} 18.
O-O {[%clk 0:07:11]} 18... e6 {[%clk 0:03:03]} 19. Rfd1 {[%clk 0:06:49.3]} 19...
Rhe8 {[%clk 0:02:51.6]} 20. dxe6 {[%clk 0:06:37.6]} 20... Rxe6 {[%clk 0:02:00]}
21. f3 {[%clk 0:06:37.2]} 21... Nb8 {[%clk 0:01:48.9]} 22. Nc4 {[%clk
0:06:27.3]} 22... Nd7 {[%clk 0:01:00.5]} 23. Rd5 {[%clk 0:05:51.4]} 23... Bf8
{[%clk 0:00:34.3]} 24. Kf2 {[%clk 0:05:40.3]} 24... Rb8 {[%clk 0:00:24.2]} 25.
Ra2 {[%clk 0:05:03.4]} 25... Nb6 {[%clk 0:00:24.1]} 26. Naxb6 {[%clk 0:04:49.9]}
26... axb6 {[%clk 0:00:24.6]} 27. Rd1 {[%clk 0:04:48.5]} 27... b5 {[%clk
0:00:21.7]} 28. Ne3 {[%clk 0:04:47.9]} 28... Kb7 {[%clk 0:00:19]} 29. Rda1
{[%clk 0:04:47.4]} 29... Kc8 {[%clk 0:00:14.9]} 30. Nd5 {[%clk 0:04:43.9]} 30...
f5 {[%clk 0:00:13.8]} 31. exf5 {[%clk 0:04:44]} 31... gxf5 {[%clk 0:00:14.4]}
32. Ra7 {[%clk 0:04:43.1]} 32... Rb7 {[%clk 0:00:13.8]} 33. Ra8+ {[%clk
0:04:34.2]} 33... Rb8 {[%clk 0:00:14.4]} 34. R1a7 {[%clk 0:04:35.7]} 34... Rxa8
{[%clk 0:00:13]} 35. Rxa8+ {[%clk 0:04:36.7]} 35... Kb7 {[%clk 0:00:12]} 36.
Rxf8 {[%clk 0:04:37.6]} 1-0

[Event "GrandPrix_30.05"]
[Site "Chess.com"]
[Date "2020.05.30"]
[Round "1"]
[White "rusuvlad95"]
[Black "Gareth-Bale11"]
[Result "0-1"]
[WhiteElo "2102"]
[BlackElo "2435"]
[TimeControl "600+2"]
[EndTime "8:18:20 PDT"]
[Termination "Gareth-Bale11 won by resignation"]

1. e4 {[%clk 0:10:01.9]} 1... c5 {[%clk 0:09:50.6]} 2. Nf3 {[%clk 0:10:02.3]}
2... d6 {[%clk 0:09:51.6]} 3. d4 {[%clk 0:10:03]} 3... cxd4 {[%clk 0:09:52.5]}
4. Nxd4 {[%clk 0:10:04.9]} 4... Nf6 {[%clk 0:09:53.8]} 5. Nc3 {[%clk 0:10:05.9]}
5... a6 {[%clk 0:09:54.9]} 6. Be2 {[%clk 0:09:58.5]} 6... e5 {[%clk 0:09:53.9]}
7. Nb3 {[%clk 0:09:59.8]} 7... Be6 {[%clk 0:09:54.1]} 8. Be3 {[%clk 0:09:59.5]}
8... Nbd7 {[%clk 0:09:50.9]} 9. O-O {[%clk 0:09:46.5]} 9... Be7 {[%clk
0:09:45.8]} 10. f4 {[%clk 0:08:41.4]} 10... Qc7 {[%clk 0:09:22.3]} 11. f5 {[%clk
0:08:09.3]} 11... Bc4 {[%clk 0:09:20.4]} 12. g4 {[%clk 0:08:09.6]} 12... h6
{[%clk 0:09:02]} 13. a3 {[%clk 0:08:02.1]} 13... Rd8 {[%clk 0:08:27.4]} 14. Rf2
{[%clk 0:06:57.8]} 14... b5 {[%clk 0:07:42.3]} 15. Nd2 {[%clk 0:06:03.4]} 15...
d5 {[%clk 0:07:16]} 16. Nxc4 {[%clk 0:05:58.9]} 16... dxc4 {[%clk 0:07:08.9]}
17. Qf1 {[%clk 0:05:47.1]} 17... Bc5 {[%clk 0:07:02.1]} 18. Bxc5 {[%clk
0:05:42.4]} 18... Nxc5 {[%clk 0:07:01.5]} 19. Bf3 {[%clk 0:05:42.3]} 19... Rd4
{[%clk 0:06:55.8]} 20. Re1 {[%clk 0:05:35.7]} 20... Qe7 {[%clk 0:06:32.7]} 21.
Qg2 {[%clk 0:05:21.4]} 21... Nh7 {[%clk 0:05:35.2]} 22. Nd5 {[%clk 0:05:14.7]}
22... Qh4 {[%clk 0:05:29.1]} 23. Qg3 {[%clk 0:03:09.8]} 23... Qxg3+ {[%clk
0:05:28.3]} 24. hxg3 {[%clk 0:03:11.7]} 24... Ng5 {[%clk 0:05:30.1]} 25. Kg2
{[%clk 0:03:05.2]} 25... f6 {[%clk 0:05:17]} 26. c3 {[%clk 0:02:42.1]} 26... Nd3
{[%clk 0:05:08.6]} 27. Ref1 {[%clk 0:02:20.5]} 27... Nxf2 {[%clk 0:04:02]} 28.
cxd4 {[%clk 0:02:20.6]} 28... Nd3 {[%clk 0:03:59.7]} 29. dxe5 {[%clk 0:01:19.4]}
29... Nxe5 {[%clk 0:04:01.6]} 30. Bd1 {[%clk 0:01:14.5]} 30... Nxe4 {[%clk
0:03:57.6]} 31. Nc7+ {[%clk 0:01:13.8]} 31... Kf7 {[%clk 0:03:55.2]} 32. Nxa6
{[%clk 0:01:14.6]} 32... Rd8 {[%clk 0:03:54.7]} 33. Nb4 {[%clk 0:00:34.9]} 33...
Rd2+ {[%clk 0:03:53.9]} 34. Kh3 {[%clk 0:00:33.3]} 34... Ng5+ {[%clk 0:03:53.3]}
0-1

[Event "GrandPrix_30.05"]
[Site "Chess.com"]
[Date "2020.05.30"]
[Round "1"]
[White "Gurvich_Vitaly"]
[Black "Poghosyan_Suren"]
[Result "0-1"]
[WhiteElo "2333"]
[BlackElo "2137"]
[TimeControl "600+2"]
[EndTime "8:18:27 PDT"]
[Termination "Poghosyan_Suren won by resignation"]

1. e4 {[%clk 0:10:01.1]} 1... e6 {[%clk 0:09:59.2]} 2. d4 {[%clk 0:10:00.8]}
2... d5 {[%clk 0:09:59.6]} 3. Nd2 {[%clk 0:10:02]} 3... Be7 {[%clk 0:09:57.5]}
4. Bd3 {[%clk 0:10:00.3]} 4... c5 {[%clk 0:09:54.3]} 5. dxc5 {[%clk 0:09:59.5]}
5... Nf6 {[%clk 0:09:53.7]} 6. Ngf3 {[%clk 0:10:00.1]} 6... dxe4 {[%clk
0:09:49.3]} 7. Nxe4 {[%clk 0:10:02]} 7... Nxe4 {[%clk 0:09:50.5]} 8. Bxe4 {[%clk
0:10:03.9]} 8... Qxd1+ {[%clk 0:09:51.8]} 9. Kxd1 {[%clk 0:10:05.2]} 9... Bxc5
{[%clk 0:09:53.7]} 10. Ke2 {[%clk 0:10:06.6]} 10... Nd7 {[%clk 0:09:28.6]} 11.
Be3 {[%clk 0:10:06]} 11... Bxe3 {[%clk 0:09:08.1]} 12. Kxe3 {[%clk 0:10:07.9]}
12... Nc5 {[%clk 0:09:09.5]} 13. Rhd1 {[%clk 0:10:06.6]} 13... f6 {[%clk
0:08:08.2]} 14. Nd4 {[%clk 0:10:00.6]} 14... Nxe4 {[%clk 0:08:07.2]} 15. Kxe4
{[%clk 0:10:02.5]} 15... Bd7 {[%clk 0:08:06.2]} 16. c4 {[%clk 0:09:56.7]} 16...
Ke7 {[%clk 0:08:05.3]} 17. f4 {[%clk 0:09:54.5]} 17... Rac8 {[%clk 0:08:02]} 18.
b3 {[%clk 0:09:54.8]} 18... h5 {[%clk 0:07:48]} 19. Rd2 {[%clk 0:09:44]} 19...
a6 {[%clk 0:07:18.2]} 20. a4 {[%clk 0:09:41.9]} 20... Rc5 {[%clk 0:07:07]} 21.
Rad1 {[%clk 0:09:06.7]} 21... h4 {[%clk 0:06:58.8]} 22. h3 {[%clk 0:08:43.6]}
22... g5 {[%clk 0:06:29.8]} 23. fxg5 {[%clk 0:08:37]} 23... Rxg5 {[%clk
0:06:30.3]} 24. Nf3 {[%clk 0:08:36.1]} 24... Bc6+ {[%clk 0:06:31.2]} 25. Ke3
{[%clk 0:08:37.3]} 25... Rg3 {[%clk 0:06:28.4]} 26. Kd4 {[%clk 0:07:37.7]} 26...
Bxf3 {[%clk 0:04:09.9]} 27. gxf3 {[%clk 0:07:39.6]} 27... Rd8+ {[%clk
0:04:10.8]} 28. Kc5 {[%clk 0:07:38.5]} 28... Rxd2 {[%clk 0:04:11.3]} 29. Rxd2
{[%clk 0:07:40.4]} 29... Rxf3 {[%clk 0:04:09.5]} 30. b4 {[%clk 0:07:41.8]} 30...
Rxh3 {[%clk 0:02:29.6]} 31. Kb6 {[%clk 0:07:37.8]} 31... Rb3 {[%clk 0:02:29.8]}
32. b5 {[%clk 0:07:37.3]} 32... axb5 {[%clk 0:02:20.5]} 33. axb5 {[%clk
0:07:14.8]} 33... Rc3 {[%clk 0:02:07.4]} 34. c5 {[%clk 0:07:01.1]} 34... e5
{[%clk 0:01:52.5]} 35. Ra2 {[%clk 0:06:48.1]} 35... Ke6 {[%clk 0:01:20]} 36. Ra7
{[%clk 0:06:46.4]} 36... Kd5 {[%clk 0:01:20.8]} 37. Ra8 {[%clk 0:04:48.1]} 37...
h3 {[%clk 0:01:11.6]} 38. Rh8 {[%clk 0:04:46.3]} 38... f5 {[%clk 0:01:05.6]} 39.
Rh7 {[%clk 0:04:33]} 39... Rxc5 {[%clk 0:01:03.6]} 40. Rxh3 {[%clk 0:04:25.2]}
40... f4 {[%clk 0:01:01.6]} 41. Rh7 {[%clk 0:04:18.4]} 41... Kc4 {[%clk
0:00:40.8]} 0-1

[Event "GrandPrix_30.05"]
[Site "Chess.com"]
[Date "2020.05.30"]
[Round "1"]
[White "Mikhail_Golubev"]
[Black "hubertsmazak"]
[Result "1/2-1/2"]
[WhiteElo "2033"]
[BlackElo "2285"]
[TimeControl "600+2"]
[EndTime "8:18:43 PDT"]
[Termination "Game drawn - insufficient material"]

1. e4 {[%clk 0:09:50.2]} 1... e5 {[%clk 0:10:00.3]} 2. Nf3 {[%clk 0:09:48]} 2...
Nc6 {[%clk 0:10:01.5]} 3. Nc3 {[%clk 0:09:48.9]} 3... Nf6 {[%clk 0:10:01.5]} 4.
d4 {[%clk 0:09:49.7]} 4... exd4 {[%clk 0:10:02.6]} 5. Nxd4 {[%clk 0:09:49.7]}
5... Bb4 {[%clk 0:10:02.6]} 6. Nxc6 {[%clk 0:09:50.6]} 6... bxc6 {[%clk
0:10:03.8]} 7. Bd3 {[%clk 0:09:51.4]} 7... d5 {[%clk 0:10:04.6]} 8. Bd2 {[%clk
0:09:42.2]} 8... O-O {[%clk 0:09:52.1]} 9. O-O {[%clk 0:09:40.9]} 9... Bxc3
{[%clk 0:09:33.4]} 10. Bxc3 {[%clk 0:09:37.1]} 10... Nxe4 {[%clk 0:08:56.5]} 11.
Bxe4 {[%clk 0:09:36.3]} 11... dxe4 {[%clk 0:08:56.4]} 12. Qe2 {[%clk 0:09:37.8]}
12... Be6 {[%clk 0:08:02.5]} 13. Qxe4 {[%clk 0:09:11.9]} 13... Qg5 {[%clk
0:08:01.9]} 14. Qe5 {[%clk 0:08:37.3]} 14... Qxe5 {[%clk 0:07:19.4]} 15. Bxe5
{[%clk 0:08:35.6]} 15... Rac8 {[%clk 0:07:19.6]} 16. Rad1 {[%clk 0:07:44]} 16...
f6 {[%clk 0:07:12.9]} 17. Bf4 {[%clk 0:07:33.4]} 17... Kf7 {[%clk 0:07:13.5]}
18. Rd4 {[%clk 0:07:12.6]} 18... Rb8 {[%clk 0:06:52.2]} 19. b3 {[%clk
0:06:59.4]} 19... Rfd8 {[%clk 0:06:41.1]} 20. Rfd1 {[%clk 0:06:00.1]} 20... Rxd4
{[%clk 0:04:57.4]} 21. Rxd4 {[%clk 0:05:58.7]} 21... c5 {[%clk 0:04:53.1]} 22.
Ra4 {[%clk 0:05:40.8]} 22... Rb4 {[%clk 0:04:52.8]} 23. Rxb4 {[%clk 0:05:16.2]}
23... cxb4 {[%clk 0:04:54.7]} 24. Bxc7 {[%clk 0:05:13.8]} 24... Bf5 {[%clk
0:04:55.8]} 25. Ba5 {[%clk 0:05:01.3]} 25... Bxc2 {[%clk 0:04:55.1]} 26. Bxb4
{[%clk 0:05:02.1]} 26... Bb1 {[%clk 0:04:46.3]} 27. a3 {[%clk 0:05:02.9]} 27...
Bc2 {[%clk 0:04:31.3]} 28. Bc5 {[%clk 0:05:01.7]} 28... a6 {[%clk 0:04:32.8]}
29. b4 {[%clk 0:04:59.8]} 29... Ke6 {[%clk 0:04:26.4]} 30. f3 {[%clk 0:04:26]}
30... Kd5 {[%clk 0:04:22.6]} 31. Bf8 {[%clk 0:04:21.8]} 31... g6 {[%clk
0:04:20.8]} 32. Kf2 {[%clk 0:04:18.3]} 32... h5 {[%clk 0:03:53.4]} 33. Ke3
{[%clk 0:03:59.3]} 33... Kc4 {[%clk 0:03:52]} 34. Be7 {[%clk 0:03:53.6]} 34...
Kb3 {[%clk 0:03:30]} 35. Bxf6 {[%clk 0:03:42.6]} 35... Kxa3 {[%clk 0:03:30.5]}
36. Be7 {[%clk 0:03:36.7]} 36... Ka4 {[%clk 0:03:31.5]} 37. Kd2 {[%clk
0:02:25.7]} 37... Bb1 {[%clk 0:03:24]} 38. g4 {[%clk 0:01:27.3]} 38... hxg4
{[%clk 0:03:23.6]} 39. fxg4 {[%clk 0:01:27.7]} 39... a5 {[%clk 0:03:24.1]} 40.
bxa5 {[%clk 0:01:25.7]} 40... Kxa5 {[%clk 0:03:26]} 41. h4 {[%clk 0:01:24.9]}
41... Kb5 {[%clk 0:03:26.2]} 42. h5 {[%clk 0:01:25.2]} 42... gxh5 {[%clk
0:03:27.2]} 43. gxh5 {[%clk 0:01:26.1]} 43... Kc6 {[%clk 0:03:28.3]} 44. h6
{[%clk 0:01:24.5]} 44... Kd7 {[%clk 0:03:29.2]} 45. h7 {[%clk 0:01:20.7]} 45...
Bxh7 {[%clk 0:03:29.6]} 1/2-1/2

[Event "GrandPrix_30.05"]
[Site "Chess.com"]
[Date "2020.05.30"]
[Round "1"]
[White "iceboy88"]
[Black "kostasam18"]
[Result "0-1"]
[WhiteElo "2331"]
[BlackElo "2091"]
[TimeControl "600+2"]
[EndTime "8:18:45 PDT"]
[Termination "kostasam18 won by resignation"]

1. Nf3 {[%clk 0:10:01.1]} 1... Nf6 {[%clk 0:09:56.6]} 2. c4 {[%clk 0:10:01.2]}
2... e6 {[%clk 0:09:56.2]} 3. g3 {[%clk 0:10:01.2]} 3... d5 {[%clk 0:09:56.5]}
4. Bg2 {[%clk 0:10:02.2]} 4... Be7 {[%clk 0:09:57.3]} 5. O-O {[%clk 0:10:03.2]}
5... O-O {[%clk 0:09:58.6]} 6. b3 {[%clk 0:10:04]} 6... d4 {[%clk 0:09:59.2]} 7.
Bb2 {[%clk 0:09:56.7]} 7... c5 {[%clk 0:09:58.8]} 8. b4 {[%clk 0:09:51.8]} 8...
Nc6 {[%clk 0:09:39.1]} 9. b5 {[%clk 0:09:37.5]} 9... Na5 {[%clk 0:09:12]} 10. d3
{[%clk 0:09:36.2]} 10... Bd6 {[%clk 0:09:08.9]} 11. e3 {[%clk 0:09:13.1]} 11...
e5 {[%clk 0:09:05.9]} 12. exd4 {[%clk 0:09:07.5]} 12... exd4 {[%clk 0:09:01.1]}
13. Nbd2 {[%clk 0:08:54.8]} 13... Bf5 {[%clk 0:08:53]} 14. Qc2 {[%clk 0:08:52]}
14... h6 {[%clk 0:08:52.3]} 15. Rae1 {[%clk 0:08:43.2]} 15... Re8 {[%clk
0:08:49.5]} 16. Rxe8+ {[%clk 0:07:49.9]} 16... Qxe8 {[%clk 0:08:46.3]} 17. Re1
{[%clk 0:07:50.1]} 17... Qf8 {[%clk 0:08:24.1]} 18. Nxd4 {[%clk 0:06:52.3]}
18... cxd4 {[%clk 0:08:16.9]} 19. Bxd4 {[%clk 0:06:53.1]} 19... Re8 {[%clk
0:08:06.9]} 20. Rxe8 {[%clk 0:06:04.4]} 20... Qxe8 {[%clk 0:08:05.4]} 21. Nf1
{[%clk 0:06:02.8]} 21... b6 {[%clk 0:07:55.8]} 22. Ne3 {[%clk 0:05:48.4]} 22...
Bc8 {[%clk 0:07:49.3]} 23. Bxf6 {[%clk 0:05:36.8]} 23... gxf6 {[%clk 0:07:47.7]}
24. Be4 {[%clk 0:05:29.5]} 24... Qe5 {[%clk 0:07:36.8]} 25. Qd1 {[%clk
0:03:52.1]} 25... f5 {[%clk 0:07:20.3]} 26. Bd5 {[%clk 0:03:40.2]} 26... f4
{[%clk 0:07:08.2]} 27. d4 {[%clk 0:03:13.3]} 27... Qg5 {[%clk 0:06:59.6]} 28.
Ng2 {[%clk 0:02:33.1]} 28... fxg3 {[%clk 0:06:45]} 29. hxg3 {[%clk 0:02:30.8]}
29... Be6 {[%clk 0:06:37.6]} 30. Bxe6 {[%clk 0:01:56.3]} 30... fxe6 {[%clk
0:06:37]} 31. Ne3 {[%clk 0:01:50.9]} 31... Bxg3 {[%clk 0:06:32.3]} 32. Qf3
{[%clk 0:01:31.4]} 32... Be5+ {[%clk 0:05:35.9]} 33. Kf1 {[%clk 0:01:24.3]}
33... Bxd4 {[%clk 0:05:15.9]} 34. Qa8+ {[%clk 0:01:24.3]} 34... Kf7 {[%clk
0:05:13.5]} 35. Qxa7+ {[%clk 0:01:24.8]} 35... Qe7 {[%clk 0:05:00.1]} 36. Qb8
{[%clk 0:01:08.3]} 36... Bxe3 {[%clk 0:04:56.8]} 37. fxe3 {[%clk 0:01:09.6]}
37... Nxc4 {[%clk 0:04:52.6]} 38. Ke2 {[%clk 0:01:10.8]} 38... Qd6 {[%clk
0:04:45.8]} 39. Qb7+ {[%clk 0:01:00.3]} 39... Ke8 {[%clk 0:04:33.8]} 40. Qe4
{[%clk 0:00:23.3]} 40... Qd2+ {[%clk 0:04:28.3]} 41. Kf3 {[%clk 0:00:24.5]}
41... Qxe3+ {[%clk 0:04:25.3]} 42. Qxe3 {[%clk 0:00:23.3]} 42... Nxe3 {[%clk
0:04:26.3]} 43. Kxe3 {[%clk 0:00:25]} 43... Kd7 {[%clk 0:04:27]} 0-1

[Event "GrandPrix_30.05"]
[Site "Chess.com"]
[Date "2020.05.30"]
[Round "1"]
[White "GMMarcinDziuba"]
[Black "hypert"]
[Result "1-0"]
[WhiteElo "2538"]
[BlackElo "2144"]
[TimeControl "600+2"]
[EndTime "8:18:55 PDT"]
[Termination "GMMarcinDziuba won by resignation"]

1. Nf3 {[%clk 0:10:01.9]} 1... d5 {[%clk 0:09:52.4]} 2. g3 {[%clk 0:10:02.7]}
2... g6 {[%clk 0:09:49.6]} 3. c4 {[%clk 0:10:01.5]} 3... d4 {[%clk 0:09:47]} 4.
Bg2 {[%clk 0:10:00.7]} 4... Bg7 {[%clk 0:09:47.5]} 5. O-O {[%clk 0:10:00]} 5...
e5 {[%clk 0:09:48.2]} 6. d3 {[%clk 0:10:01]} 6... Ne7 {[%clk 0:09:44]} 7. b4
{[%clk 0:10:01.1]} 7... O-O {[%clk 0:09:43.8]} 8. Nbd2 {[%clk 0:09:54.8]} 8...
a5 {[%clk 0:09:37.6]} 9. b5 {[%clk 0:09:54]} 9... c5 {[%clk 0:09:28]} 10. bxc6
{[%clk 0:09:39.3]} 10... Nexc6 {[%clk 0:09:24]} 11. Ba3 {[%clk 0:09:30.1]} 11...
Re8 {[%clk 0:08:55.9]} 12. Ne4 {[%clk 0:09:25.3]} 12... Nb4 {[%clk 0:07:50.1]}
13. Ne1 {[%clk 0:09:19.8]} 13... N8c6 {[%clk 0:07:35.7]} 14. Nc2 {[%clk
0:09:02.5]} 14... f5 {[%clk 0:07:24.9]} 15. Nd2 {[%clk 0:08:38.7]} 15... Bf8
{[%clk 0:06:49.5]} 16. Nxb4 {[%clk 0:08:38]} 16... axb4 {[%clk 0:06:42.7]} 17.
Bb2 {[%clk 0:08:36.4]} 17... Be6 {[%clk 0:06:22.9]} 18. Nb3 {[%clk 0:08:27.9]}
18... Qc7 {[%clk 0:06:04.3]} 19. Qc2 {[%clk 0:08:15.8]} 19... Ra6 {[%clk
0:05:49.1]} 20. e3 {[%clk 0:08:06.3]} 20... dxe3 {[%clk 0:05:37.7]} 21. fxe3
{[%clk 0:08:08.2]} 21... Bg7 {[%clk 0:05:30.1]} 22. d4 {[%clk 0:08:06]} 22...
Bf7 {[%clk 0:03:51.5]} 23. d5 {[%clk 0:07:49.3]} 23... Na5 {[%clk 0:03:49.2]}
24. c5 {[%clk 0:07:39.4]} 24... Nxb3 {[%clk 0:03:25.1]} 25. axb3 {[%clk
0:07:41.3]} 25... Bf8 {[%clk 0:03:03.4]} 26. Rxa6 {[%clk 0:07:37.4]} 26... bxa6
{[%clk 0:03:04.6]} 27. Rc1 {[%clk 0:07:22.2]} 27... Rc8 {[%clk 0:03:00]} 28. d6
{[%clk 0:07:13.5]} 28... Bxd6 {[%clk 0:02:50.4]} 29. cxd6 {[%clk 0:07:12.8]}
29... Qxc2 {[%clk 0:02:52.1]} 30. Rxc2 {[%clk 0:07:13.7]} 30... Rxc2 {[%clk
0:02:54]} 31. d7 {[%clk 0:07:15]} 31... Rxb2 {[%clk 0:02:07.4]} 32. d8=Q+ {[%clk
0:07:05.3]} 32... Kg7 {[%clk 0:02:08.5]} 33. Qe7 {[%clk 0:07:01.4]} 33... Rb1+
{[%clk 0:02:05.7]} 34. Bf1 {[%clk 0:06:55.3]} 34... e4 {[%clk 0:02:06.7]} 35.
Qxb4 {[%clk 0:06:49.7]} 35... Rxb3 {[%clk 0:02:06.5]} 36. Qd4+ {[%clk
0:06:48.3]} 36... Kg8 {[%clk 0:02:07.4]} 37. Bxa6 {[%clk 0:06:48.9]} 37... Rb1+
{[%clk 0:02:03.1]} 38. Kg2 {[%clk 0:06:49.4]} 38... Rb8 {[%clk 0:02:05]} 39. h4
{[%clk 0:06:46.5]} 39... h5 {[%clk 0:02:03.5]} 40. Bc4 {[%clk 0:06:13.1]} 40...
Rf8 {[%clk 0:01:50.1]} 41. Kf2 {[%clk 0:06:12.3]} 41... Bxc4 {[%clk 0:01:49]}
42. Qxc4+ {[%clk 0:06:14.2]} 42... Kg7 {[%clk 0:01:50.1]} 43. Ke2 {[%clk
0:06:15.1]} 43... Kh6 {[%clk 0:01:44.5]} 44. Qc7 {[%clk 0:06:08.8]} 44... Ra8
{[%clk 0:01:38.2]} 45. Kd2 {[%clk 0:06:09]} 45... Ra3 {[%clk 0:01:35.4]} 46.
Qf4+ {[%clk 0:06:06.6]} 46... Kh7 {[%clk 0:01:35.6]} 47. Qe5 {[%clk 0:05:39.8]}
47... Rd3+ {[%clk 0:01:34.1]} 48. Ke2 {[%clk 0:05:20.1]} 48... Rd7 {[%clk
0:01:09]} 49. Qe6 {[%clk 0:05:18]} 49... Rb7 {[%clk 0:01:03.3]} 50. Kd2 {[%clk
0:05:16.7]} 50... Rc7 {[%clk 0:01:01.4]} 51. Qd6 {[%clk 0:05:14.1]} 51... Ra7
{[%clk 0:01:00.5]} 52. Kc3 {[%clk 0:05:14]} 52... Rb7 {[%clk 0:00:46.7]} 53. Kd4
{[%clk 0:05:14.2]} 53... Ra7 {[%clk 0:00:47.5]} 54. Ke5 {[%clk 0:05:14.2]} 54...
Rf7 {[%clk 0:00:48.3]} 55. Kf4 {[%clk 0:05:05.2]} 55... Kg7 {[%clk 0:00:34.6]}
56. Kg5 {[%clk 0:05:03.8]} 56... f4 {[%clk 0:00:36]} 57. Qxg6+ {[%clk
0:05:04.3]} 1-0